fUSD/lending_fUSD_20260529
["ID","MTS","AMOUNT","RATE_DAILY","PERIOD"]
[423296812,1780042247000,-159.23480163,0.0001499,2]
[423296832,1780042247000,-500.0,0.00014999,2]
[423296844,1780042247000,-500.0,0.00014999,2]
[423296839,1780042247000,-500.0,0.00014999,2]
[423296851,1780042247000,-1181.18,0.00014999,2]
[423296856,1780042247000,-1181.18,0.00014999,2]
[423296862,1780042247000,-1181.21,0.00014999,2]
[423296858,1780042247000,-1181.18,0.00014999,2]
[423296857,1780042247000,-1181.18,0.00014999,2]
[423296859,1780042247000,-1181.18,0.00014999,2]
[423296848,1780042247000,-1181.18,0.00014999,2]
[423296864,1780042247000,-300.0,0.00014999,2]
[423296863,1780042247000,-666.0,0.00014999,2]
[423296865,1780042247000,-300.0,0.00014999,2]
[423296867,1780042247000,-1729.74326459,0.00015,30]
[423296866,1780042247000,-3147999.82877863,0.00015,2]
[423296868,1780042247000,-3148.85513317,0.00015,14]
[423296841,1780042247000,-500.0,0.00014999,2]
[423296861,1780042247000,-1181.18,0.00014999,2]
[423296850,1780042247000,-1181.18,0.00014999,2]
[423296860,1780042247000,-1181.18,0.00014999,2]
[423296847,1780042247000,-1181.18,0.00014999,2]
[423296840,1780042247000,-500.0,0.00014999,2]
[423296831,1780042247000,-500.0,0.00014999,2]
[423296842,1780042247000,-500.0,0.00014999,2]
[423296835,1780042247000,-500.0,0.00014999,2]
[423296838,1780042247000,-500.0,0.00014999,2]
[423296836,1780042247000,-500.0,0.00014999,2]
[423296852,1780042247000,-1181.18,0.00014999,2]
[423296837,1780042247000,-500.0,0.00014999,2]
[423296854,1780042247000,-1181.18,0.00014999,2]
[423296845,1780042247000,-500.0,0.00014999,2]
[423296853,1780042247000,-1181.18,0.00014999,2]
[423296849,1780042247000,-1181.18,0.00014999,2]
[423296846,1780042247000,-1181.18,0.00014999,2]
[423296855,1780042247000,-1181.18,0.00014999,2]
[423296843,1780042247000,-500.0,0.00014999,2]
[423296870,1780042248000,-1921.73350908,0.00015,2]
[423296869,1780042248000,-152636.01705901,0.00015,2]
[423296872,1780042264000,250.0,0.00012054,2]
[423296871,1780042264000,250.0,0.0001182,2]
[423296875,1780042267000,-3476.1695687,0.00012914,2]
[423296873,1780042267000,-300.0,0.00012651,2]
[423296876,1780042267000,-250.0,0.00012914,2]
[423296877,1780042267000,-500.0,0.00012914,2]
[423296874,1780042267000,-284.0702484,0.00012914,2]
[423296878,1780042280000,500.0,0.00011999,2]
[423296879,1780042296000,165.63684784,0.00011999,2]
[423296880,1780042316000,800.6,0.00028082,120]
[423296883,1780042320000,-318.06,0.00012986,2]
[423296882,1780042320000,-150.0,0.00011974,2]
[423296881,1780042320000,-150.0,0.00011856,2]
[423296884,1780042322000,150.0,0.00012753,2]
[423296886,1780042334000,209.09056759,0.00011953,2]
[423296888,1780042371000,378.48173401,0.00012651,2]
[423296889,1780042374000,160.0,0.00011953,2]
[423296890,1780042385000,800.5,0.00028082,120]
[423296892,1780042469000,237.22441136,0.00011852,2]
[423296893,1780042488000,209.09056759,0.00011953,2]
[423296894,1780042493000,150.0,0.00011388,2]
[423296895,1780042527000,160.0,0.0001174,2]
[423296897,1780042565000,209.7686987,0.0001169,2]
[423296896,1780042565000,40.2313013,0.0001169,2]
[423296898,1780042576000,-266.08531057,0.00011908,2]
[423296899,1780042625000,192.35263549,0.0001169,2]
[423296900,1780042625000,57.64736451,0.0001169,2]
[423296901,1780042642000,209.09056759,0.0001174,2]
[423296902,1780042650000,152.0,0.00026377,120]
[423296903,1780042753000,135.38340209,0.000103,2]
[423296904,1780042753000,402.12133419,0.000103,2]
[423296906,1780042753000,402.12133419,0.000103,2]
[423296905,1780042753000,402.12133419,0.000103,2]
[423296907,1780042754000,14995.94101647,0.000103,2]
[423296908,1780042777000,2110.32,0.0002802,120]
[423296910,1780042828000,12224.67,0.00010311,2]
[423296912,1780042829000,159.41,9.518e-05,2]
[423296911,1780042829000,159.41,9.042e-05,2]
[423296915,1780042829000,159.41,0.00010945,2]
[423296913,1780042829000,159.41,9.994e-05,2]
[423296914,1780042829000,159.41,0.00010469,2]
[423296917,1780042862000,163.0,0.00028,120]
[423296916,1780042862000,163.0,0.00028,120]
[423296918,1780042863000,1023.59,0.00024865,120]
[423296919,1780042863000,1023.59,0.00027125,120]
[423296947,1780042915000,164.0,0.00028,120]
[423296958,1780042916000,165.4,0.00028,120]
[423296978,1780042942000,150282.10735644,0.000107,2]
[423296980,1780042969000,2521.88398499,9.04e-05,2]
[423296992,1780043171000,331.47851834,0.00028,120]
[423297000,1780043228000,-159.41,0.00011421,2]
[423296999,1780043228000,-290.35263549,0.00011252,2]
[423297001,1780043228000,-209.09056759,0.00011458,2]
[423297002,1780043228000,-159.41,0.00011897,2]
[423297003,1780043228000,-376.0,0.00011985,2]
[423297010,1780043228000,-2052.3858849,0.00012413,2]
[423297005,1780043228000,-152.0,0.00012291,2]
[423297006,1780043228000,-500.0,0.00012307,2]
[423297008,1780043228000,-191.94091202,0.00012307,2]
[423297007,1780043228000,-500.0,0.00012307,2]
[423297009,1780043228000,-159.41,0.00012373,2]
[423297004,1780043228000,-250.0,0.00012156,2]
[423297012,1780043234000,-405.60191539,0.00012413,2]
[423297013,1780043245000,152.0,0.00027874,120]
[423297014,1780043263000,-192.093504,0.00012323,2]
[423297015,1780043263000,-4807.906496,0.00012413,2]
[423297017,1780043340000,1000.0,0.00028081,120]
[423297021,1780043431000,-200.0,0.00012074,2]
[423297025,1780043431000,-251.30701311,0.00012323,2]
[423297023,1780043431000,-500.0,0.00012307,2]
[423297026,1780043431000,-10433.10570371,0.00012413,2]
[423297028,1780043431000,-2859.09,0.00012425,2]
[423297022,1780043431000,-500.0,0.00012074,2]
[423297031,1780043431000,-7029.0,0.00012507,2]
[423297027,1780043431000,-1489.0,0.00012423,2]
[423297034,1780043431000,-665.20343851,0.00012507,2]
[423297033,1780043431000,-292.97700002,0.00012507,2]
[423297024,1780043431000,-171.71689518,0.00012307,2]
[423297030,1780043431000,-2815.0,0.00012507,2]
[423297029,1780043431000,-804.11728104,0.00012448,2]
[423297032,1780043431000,-8820.81956147,0.00012507,2]
[423297037,1780043432000,-5764.0,0.00012507,2]
[423297036,1780043432000,-254.0,0.00012507,2]
[423297039,1780043432000,-1142.0,0.00012532,2]
[423297040,1780043432000,-157.0,0.00012532,2]
[423297038,1780043432000,-387.0,0.00012514,2]
[423297042,1780043432000,-178.96984945,0.00012589,2]
[423297041,1780043432000,-197.47646254,0.00012558,2]
[423297043,1780043432000,-1200.0,0.00012651,2]
[423297044,1780043432000,-1200.0,0.00012651,2]
[423297045,1780043432000,-300.0,0.00012651,2]
[423297046,1780043432000,-246.0,0.00012651,2]
[423297035,1780043432000,-219.0,0.00012507,2]
[423297048,1780043432000,-2859.09,0.00012736,2]
[423297050,1780043432000,-15141.71183196,0.00012759,2]
[423297051,1780043432000,-797.59445327,0.00012759,2]
[423297052,1780043432000,-765.71157577,0.00012759,2]
[423297053,1780043432000,-378.71365915,0.00012759,2]
[423297054,1780043432000,-638.34053726,0.00012759,2]
[423297047,1780043432000,-3766.17824581,0.00012699,2]
[423297049,1780043432000,-35196.57096622,0.00012759,2]
[423297077,1780043438000,-93.88328359,0.00012759,2]
[423297076,1780043438000,-209.09056759,0.00011458,2]
[423297106,1780043439000,-167.11,0.00013376,2]
[423297105,1780043439000,-152.0,0.00013374,30]
[423297107,1780043439000,-3766.17824576,0.00013433,2]
[423297108,1780043439000,-2859.09,0.00013668,2]
[423297109,1780043439000,-3766.17824576,0.00013677,2]
[423297110,1780043439000,-500.0,0.00013698,2]
[423297112,1780043439000,-500.0,0.00013698,2]
[423297115,1780043439000,-500.0,0.00013698,2]
[423297114,1780043439000,-500.0,0.00013698,2]
[423297113,1780043439000,-500.0,0.00013698,2]
[423297102,1780043439000,-497.28814503,0.00013263,2]
[423297078,1780043439000,-65646.34687415,0.00012759,2]
[423297117,1780043439000,-500.0,0.00013698,2]
[423297128,1780043439000,-500.98841957,0.00013698,2]
[423297118,1780043439000,-500.0,0.00013698,2]
[423297121,1780043439000,-500.0,0.00013698,2]
[423297123,1780043439000,-500.0,0.00013698,2]
[423297124,1780043439000,-500.0,0.00013698,2]
[423297122,1780043439000,-500.0,0.00013698,2]
[423297126,1780043439000,-500.0,0.00013698,2]
[423297119,1780043439000,-500.0,0.00013698,2]
[423297127,1780043439000,-500.0,0.00013698,2]
[423297116,1780043439000,-500.0,0.00013698,2]
[423297111,1780043439000,-500.0,0.00013698,2]
[423297104,1780043439000,-2859.09,0.00013357,2]
[423297101,1780043439000,-500.0,0.00013263,2]
[423297080,1780043439000,-159.41,0.00012849,2]
[423297079,1780043439000,-284.25144115,0.00012799,2]
[423297081,1780043439000,-6696.66,0.00012893,2]
[423297083,1780043439000,-184.22,0.00012905,2]
[423297082,1780043439000,-9999.99,0.00012893,2]
[423297085,1780043439000,-3766.17824576,0.00012944,2]
[423297084,1780043439000,-237922.9,0.00012905,2]
[423297086,1780043439000,-1342.26,0.00012962,2]
[423297088,1780043439000,-872.15802478,0.00013,15]
[423297087,1780043439000,-3756.17025175,0.00013,5]
[423297103,1780043439000,-159.41,0.00013325,2]
[423297092,1780043439000,-3766.17824576,0.00013188,2]
[423297090,1780043439000,-251.0,0.00013125,2]
[423297089,1780043439000,-2859.09,0.00013046,2]
[423297095,1780043439000,-500.0,0.00013263,2]
[423297093,1780043439000,-500.0,0.00013211,2]
[423297096,1780043439000,-500.0,0.00013263,2]
[423297097,1780043439000,-384.18327823,0.00013263,2]
[423297094,1780043439000,-358.31269962,0.00013263,2]
[423297099,1780043439000,-500.0,0.00013263,2]
[423297098,1780043439000,-418.60284596,0.00013263,2]
[423297100,1780043439000,-500.0,0.00013263,2]
[423297091,1780043439000,-1880.1349,0.00013143,2]
[423297125,1780043439000,-500.0,0.00013698,2]
[423297129,1780043439000,-215.93774854,0.00013698,2]
[423297131,1780043439000,-500.0,0.00013698,2]
[423297158,1780043439000,-500.0,0.00013699,2]
[423297159,1780043439000,-500.0,0.00013699,2]
[423297161,1780043439000,-500.0,0.00013699,2]
[423297160,1780043439000,-500.0,0.00013699,2]
[423297163,1780043439000,-500.0,0.00013699,2]
[423297162,1780043439000,-500.0,0.00013699,2]
[423297166,1780043439000,-500.0,0.00013699,2]
[423297164,1780043439000,-500.0,0.00013699,2]
[423297165,1780043439000,-500.0,0.00013699,2]
[423297168,1780043439000,-500.0,0.00013699,2]
[423297157,1780043439000,-476.63839488,0.00013699,2]
[423297167,1780043439000,-500.0,0.00013699,2]
[423297171,1780043439000,-500.0,0.00013699,2]
[423297172,1780043439000,-500.0,0.00013699,2]
[423297174,1780043439000,-159.41,0.00013801,2]
[423297173,1780043439000,-500.0,0.00013699,2]
[423297177,1780043439000,-150.0,0.00013904,2]
[423297178,1780043439000,-150.0,0.00013904,2]
[423297176,1780043439000,-150.0,0.00013904,2]
[423297175,1780043439000,-166.66,0.00013836,2]
[423297179,1780043439000,-150.0,0.00013904,2]
[423297120,1780043439000,-500.0,0.00013698,2]
[423297170,1780043439000,-500.0,0.00013699,2]
[423297155,1780043439000,-500.0,0.00013699,2]
[423297169,1780043439000,-500.0,0.00013699,2]
[423297152,1780043439000,-166.66,0.00013699,2]
[423297132,1780043439000,-500.0,0.00013698,2]
[423297156,1780043439000,-500.0,0.00013699,2]
[423297134,1780043439000,-500.0,0.00013698,2]
[423297135,1780043439000,-500.0,0.00013698,2]
[423297133,1780043439000,-500.0,0.00013698,2]
[423297130,1780043439000,-500.0,0.00013698,2]
[423297137,1780043439000,-500.0,0.00013698,2]
[423297139,1780043439000,-708.71,0.00013698,2]
[423297136,1780043439000,-500.0,0.00013698,2]
[423297138,1780043439000,-502.42771557,0.00013698,2]
[423297142,1780043439000,-708.71,0.00013698,2]
[423297140,1780043439000,-708.71,0.00013698,2]
[423297154,1780043439000,-1161.71,0.00013699,2]
[423297144,1780043439000,-708.71,0.00013698,2]
[423297143,1780043439000,-708.71,0.00013698,2]
[423297145,1780043439000,-708.71,0.00013698,2]
[423297147,1780043439000,-500.0,0.00013698,2]
[423297153,1780043439000,-1421.99,0.00013699,2]
[423297146,1780043439000,-500.0,0.00013698,2]
[423297149,1780043439000,-500.0,0.00013698,2]
[423297148,1780043439000,-500.0,0.00013698,2]
[423297150,1780043439000,-500.0,0.00013698,2]
[423297151,1780043439000,-500.0,0.00013698,2]
[423297141,1780043439000,-708.71,0.00013698,2]
[423297219,1780043440000,-153.0,0.00014355,2]
[423297210,1780043440000,-166.66,0.0001411,2]
[423297220,1780043440000,-19440.08299379,0.00014368,2]
[423297223,1780043440000,-5948.13,0.00014497,2]
[423297221,1780043440000,-166.66,0.00014384,2]
[423297218,1780043440000,-1541.0,0.00014355,2]
[423297215,1780043440000,-159.41,0.00014277,2]
[423297214,1780043440000,-166.66,0.00014247,2]
[423297216,1780043440000,-350.0,0.00014301,2]
[423297211,1780043440000,-253.68,0.00014152,2]
[423297222,1780043440000,-3766.17824576,0.00014411,2]
[423297217,1780043440000,-350.0,0.00014346,2]
[423297225,1780043440000,-7074.42,0.00014497,2]
[423297236,1780043440000,-2000.0,0.00014731,2]
[423297226,1780043440000,-400.62,0.00014497,2]
[423297228,1780043440000,-350.0,0.00014618,2]
[423297227,1780043440000,-3131.61015052,0.00014602,2]
[423297230,1780043440000,-152.0,0.00014669,7]
[423297229,1780043440000,-3766.17824576,0.00014655,2]
[423297231,1780043440000,-152.0,0.00014674,7]
[423297233,1780043440000,-152.0,0.00014699,7]
[423297234,1780043440000,-350.0,0.0001473,2]
[423297232,1780043440000,-152.0,0.00014699,7]
[423297235,1780043440000,-2000.0,0.00014731,2]
[423297240,1780043440000,-2000.0,0.00014745,2]
[423297213,1780043440000,-2269.660062,0.00014207,2]
[423297224,1780043440000,-4491.87,0.00014497,2]
[423297212,1780043440000,-3766.17824576,0.00014166,2]
[423297182,1780043440000,-150.0,0.00013904,2]
[423297206,1780043440000,-500.0,0.00013987,10]
[423297237,1780043440000,-2000.0,0.00014731,2]
[423297180,1780043440000,-150.0,0.00013904,2]
[423297181,1780043440000,-250.0,0.00013904,2]
[423297184,1780043440000,-150.0,0.00013904,2]
[423297183,1780043440000,-150.0,0.00013904,2]
[423297186,1780043440000,-194.77040755,0.00013904,2]
[423297185,1780043440000,-150.0,0.00013904,2]
[423297187,1780043440000,-150.0,0.00013904,2]
[423297189,1780043440000,-150.0,0.00013904,2]
[423297188,1780043440000,-150.0,0.00013904,2]
[423297191,1780043440000,-500.0,0.00013904,2]
[423297190,1780043440000,-269.0,0.00013904,2]
[423297194,1780043440000,-500.0,0.00013904,2]
[423297193,1780043440000,-500.0,0.00013904,2]
[423297195,1780043440000,-500.0,0.00013904,2]
[423297192,1780043440000,-500.0,0.00013904,2]
[423297196,1780043440000,-500.0,0.00013904,2]
[423297198,1780043440000,-500.0,0.00013904,2]
[423297201,1780043440000,-3766.17824576,0.00013922,2]
[423297199,1780043440000,-392.09004338,0.00013904,2]
[423297197,1780043440000,-500.0,0.00013904,2]
[423297200,1780043440000,-1680.0,0.00013916,2]
[423297203,1780043440000,-500.0,0.00013987,10]
[423297202,1780043440000,-166.66,0.00013973,2]
[423297205,1780043440000,-500.0,0.00013987,10]
[423297207,1780043440000,-185.20326433,0.00013987,10]
[423297208,1780043440000,-250.0,0.00014,2]
[423297209,1780043440000,-27328.26769581,0.00014003,2]
[423297239,1780043440000,-998.58,0.00014731,2]
[423297204,1780043440000,-500.0,0.00013987,10]
[423297242,1780043440000,-159.41,0.00014752,2]
[423297318,1780043440000,-708.71,0.00014999,2]
[423297276,1780043440000,-295.01071669,0.00014911,2]
[423297282,1780043440000,-310.412,0.0001497,2]
[423297280,1780043440000,-2015.2620776,0.00014939,2]
[423297278,1780043440000,-4403.8763332,0.00014936,2]
[423297286,1780043440000,-6417.056179,0.00014985,2]
[423297289,1780043440000,-176.52703,0.00014997,2]
[423297290,1780043440000,-500.0,0.00014998,2]
[423297293,1780043440000,-500.0,0.00014998,2]
[423297295,1780043440000,-500.0,0.00014999,2]
[423297299,1780043440000,-500.0,0.00014999,2]
[423297301,1780043440000,-2000.0,0.00014999,2]
[423297303,1780043440000,-249.64,0.00014999,2]
[423297297,1780043440000,-500.0,0.00014999,2]
[423297306,1780043440000,-708.71,0.00014999,2]
[423297305,1780043440000,-708.71,0.00014999,2]
[423297307,1780043440000,-708.71,0.00014999,2]
[423297309,1780043440000,-708.71,0.00014999,2]
[423297308,1780043440000,-708.71,0.00014999,2]
[423297310,1780043440000,-708.71,0.00014999,2]
[423297311,1780043440000,-708.71,0.00014999,2]
[423297312,1780043440000,-708.71,0.00014999,2]
[423297314,1780043440000,-708.71,0.00014999,2]
[423297313,1780043440000,-708.71,0.00014999,2]
[423297317,1780043440000,-708.71,0.00014999,2]
[423297315,1780043440000,-708.71,0.00014999,2]
[423297316,1780043440000,-708.71,0.00014999,2]
[423297274,1780043440000,-500.0,0.00014911,2]
[423297284,1780043440000,-150.0,0.00014985,2]
[423297238,1780043440000,-2000.0,0.00014731,2]
[423297269,1780043440000,-500.0,0.00014911,2]
[423297241,1780043440000,-1749.41,0.00014745,2]
[423297243,1780043440000,-2071.86986917,0.00014774,2]
[423297244,1780043440000,-350.0,0.00014872,2]
[423297245,1780043440000,-163.0,0.0001488,2]
[423297246,1780043440000,-827.70159744,0.000149,2]
[423297248,1780043440000,-5661.725,0.000149,2]
[423297251,1780043440000,-500.0,0.00014911,2]
[423297250,1780043440000,-3766.17824576,0.000149,2]
[423297249,1780043440000,-589.32950067,0.000149,2]
[423297252,1780043440000,-500.0,0.00014911,2]
[423297253,1780043440000,-500.0,0.00014911,2]
[423297254,1780043440000,-500.0,0.00014911,2]
[423297255,1780043440000,-500.0,0.00014911,2]
[423297247,1780043440000,-290.3445,0.000149,2]
[423297257,1780043440000,-500.0,0.00014911,2]
[423297256,1780043440000,-500.0,0.00014911,2]
[423297267,1780043440000,-500.0,0.00014911,2]
[423297271,1780043440000,-500.0,0.00014911,2]
[423297265,1780043440000,-500.0,0.00014911,2]
[423297266,1780043440000,-500.0,0.00014911,2]
[423297263,1780043440000,-500.0,0.00014911,2]
[423297273,1780043440000,-500.0,0.00014911,2]
[423297261,1780043440000,-500.0,0.00014911,2]
[423297264,1780043440000,-500.0,0.00014911,2]
[423297260,1780043440000,-500.0,0.00014911,2]
[423297258,1780043440000,-500.0,0.00014911,2]
[423297259,1780043440000,-500.0,0.00014911,2]
[423297262,1780043440000,-500.0,0.00014911,2]
[423297338,1780043441000,-1000.0,0.00015,2]
[423297336,1780043441000,-300.0,0.00014999,2]
[423297335,1780043441000,-666.0,0.00014999,2]
[423297333,1780043441000,-300.0,0.00014999,2]
[423297334,1780043441000,-300.0,0.00014999,2]
[423297332,1780043441000,-300.0,0.00014999,2]
[423297329,1780043441000,-666.0,0.00014999,2]
[423297330,1780043441000,-666.0,0.00014999,2]
[423297331,1780043441000,-300.0,0.00014999,2]
[423297325,1780043441000,-300.0,0.00014999,2]
[423297328,1780043441000,-300.0,0.00014999,2]
[423297326,1780043441000,-300.0,0.00014999,2]
[423297322,1780043441000,-666.0,0.00014999,2]
[423297324,1780043441000,-300.0,0.00014999,2]
[423297320,1780043441000,-708.71,0.00014999,2]
[423297321,1780043441000,-708.74771969,0.00014999,2]
[423297319,1780043441000,-708.71,0.00014999,2]
[423297327,1780043441000,-666.0,0.00014999,2]
[423297323,1780043441000,-300.0,0.00014999,2]
[423297340,1780043441000,-1000.0,0.00015,2]
[423297339,1780043441000,-1000.0,0.00015,2]
[423297377,1780043441000,-300.0,0.00015,2]
[423297376,1780043441000,-1161.0645719,0.00015,2]
[423297375,1780043441000,-721.58658048,0.00015,2]
[423297358,1780043441000,-2861632.73392288,0.00015,2]
[423297356,1780043441000,-1127.8501286,0.00015,2]
[423297351,1780043441000,-1000.0,0.00015,2]
[423297354,1780043441000,-1000.0,0.00015,2]
[423297348,1780043441000,-1000.0,0.00015,2]
[423297352,1780043441000,-1000.0,0.00015,2]
[423297349,1780043441000,-1000.0,0.00015,2]
[423297346,1780043441000,-1000.0,0.00015,2]
[423297347,1780043441000,-1000.0,0.00015,2]
[423297342,1780043441000,-1000.0,0.00015,2]
[423297345,1780043441000,-1000.0,0.00015,2]
[423297344,1780043441000,-1000.0,0.00015,2]
[423297343,1780043441000,-1000.0,0.00015,2]
[423297341,1780043441000,-1000.0,0.00015,2]
[423297350,1780043441000,-1000.0,0.00015,2]
[423297337,1780043441000,-1972859.30157832,0.00015,2]
[423297466,1780043445000,-150.0,0.00013904,2]
[423297465,1780043445000,-150.0,0.00013904,2]
[423297464,1780043445000,-4088.12678118,0.00012844,2]
[423297468,1780043445000,-500.0,0.00013904,2]
[423297470,1780043445000,-500.0,0.00013904,2]
[423297469,1780043445000,-500.0,0.00013904,2]
[423297467,1780043445000,-158.0,0.00013904,2]
[423297477,1780043446000,-500.0,0.00013904,2]
[423297478,1780043446000,-500.0,0.00013904,2]
[423297472,1780043446000,-500.0,0.00013904,2]
[423297475,1780043446000,-188.69991443,0.00013904,2]
[423297473,1780043446000,-500.0,0.00013904,2]
[423297474,1780043446000,-500.0,0.00013904,2]
[423297476,1780043446000,-500.0,0.00013904,2]
[423297471,1780043446000,-500.0,0.00013904,2]
[423297479,1780043446000,-500.0,0.00013904,2]
[423297481,1780043446000,-500.0,0.00013904,2]
[423297482,1780043446000,-500.0,0.00013904,2]
[423297486,1780043446000,-320.68826829,0.00013904,2]
[423297484,1780043446000,-500.0,0.00013904,2]
[423297483,1780043446000,-500.0,0.00013904,2]
[423297485,1780043446000,-500.0,0.00013904,2]
[423297487,1780043446000,-5000.0,0.000149,2]
[423297488,1780043446000,-10056.95905081,0.000149,3]
[423297480,1780043446000,-500.0,0.00013904,2]
[423297845,1780043486000,402.12133419,9.87e-05,2]
[423297848,1780043486000,3099.0949836,9.87e-05,2]
[423297846,1780043486000,402.12133419,9.87e-05,2]
[423297847,1780043486000,3262.57504494,9.87e-05,2]
[423297849,1780043487000,2421.15563036,9.87e-05,2]
[423297851,1780043574000,151.67,9.518e-05,2]
[423297850,1780043574000,151.67,9.042e-05,2]
[423297855,1780043575000,151.67,0.00011421,2]
[423297854,1780043575000,151.67,0.00010945,2]
[423297853,1780043575000,151.67,0.00010469,2]
[423297852,1780043575000,151.67,9.994e-05,2]
[423297856,1780043576000,151.67,0.00011897,2]
[423297857,1780043580000,103.94684784,0.00012307,2]
[423297858,1780043587000,209.09056759,0.00011453,2]
[423297862,1780043974000,985.84,0.00024865,120]
[423297863,1780043974000,985.84,0.00027125,120]
[423297865,1780044004000,176.0,0.00025066,120]
[423297866,1780044032000,164.0,0.00023794,120]
[423297868,1780044033000,164.0,0.00026232,120]
[423297867,1780044033000,164.0,0.00024983,120]
[423297869,1780044074000,2260.2181734,0.0002808,120]
[423297870,1780044086000,3300.0,0.000119,4]
[423297871,1780044101000,-500.0,0.00039572,120]
[423297872,1780044101000,-500.0,0.00039572,120]
[423297873,1780044101000,-500.0,0.00039572,120]
[423297874,1780044101000,-500.0,0.00039572,120]
[423297875,1780044101000,-500.0,0.00039572,120]
[423297876,1780044101000,-500.0,0.00039572,120]
[423297878,1780044101000,-500.0,0.00039572,120]
[423297879,1780044101000,-500.0,0.00039572,120]
[423297881,1780044101000,-500.0,0.00039572,120]
[423297880,1780044101000,-500.0,0.00039572,120]
[423297877,1780044101000,-254.09783097,0.00039572,120]
[423297892,1780044102000,-188.62061686,0.00039572,120]
[423297897,1780044102000,-500.0,0.00039572,120]
[423297896,1780044102000,-500.0,0.00039572,120]
[423297895,1780044102000,-249.09582628,0.00039572,120]
[423297894,1780044102000,-152.53582212,0.00039572,120]
[423297893,1780044102000,-606.36900502,0.00039572,120]
[423297891,1780044102000,-535.6511661,0.00039572,120]
[423297882,1780044102000,-532.25709681,0.00039572,120]
[423297889,1780044102000,-438.16188048,0.00039572,120]
[423297888,1780044102000,-584.53870745,0.00039572,120]
[423297886,1780044102000,-584.53870745,0.00039572,120]
[423297884,1780044102000,-595.33297192,0.00039572,120]
[423297885,1780044102000,-312.01409214,0.00039572,120]
[423297883,1780044102000,-355.17655792,0.00039572,120]
[423297898,1780044102000,-562.69867256,0.00039572,120]
[423297890,1780044102000,-647.23340467,0.00039572,120]
[423297899,1780044102000,-318.03076057,0.00039572,120]
[423297887,1780044102000,-584.53870745,0.00039572,120]
[423297901,1780044102000,-500.0,0.00039572,120]
[423297900,1780044102000,-241.58897326,0.00039572,120]
[423297916,1780044102000,-500.0,0.00039572,120]
[423297917,1780044102000,-500.0,0.00039572,120]
[423297915,1780044102000,-500.0,0.00039572,120]
[423297914,1780044102000,-500.0,0.00039572,120]
[423297912,1780044102000,-271.02287769,0.00039572,120]
[423297911,1780044102000,-607.44074713,0.00039572,120]
[423297909,1780044102000,-500.0,0.00039572,120]
[423297913,1780044102000,-500.0,0.00039572,120]
[423297908,1780044102000,-500.0,0.00039572,120]
[423297907,1780044102000,-159.15185603,0.00039572,120]
[423297906,1780044102000,-519.04132885,0.00039572,120]
[423297905,1780044102000,-524.55469955,0.00039572,120]
[423297904,1780044102000,-384.245351,0.00039572,120]
[423297902,1780044102000,-500.0,0.00039572,120]
[423297903,1780044102000,-500.0,0.00039572,120]
[423297910,1780044102000,-500.0,0.00039572,120]
[423297928,1780044103000,-500.0,0.00039572,120]
[423297933,1780044103000,-500.0,0.00039572,120]